bitfinex/quotes_ETHUSD_20220120
["timestamp","ask_amount","ask_price","bid_price","bid_amount"]
[1642691085779,0.00278634,3229.4,3228.8,0.15497]
[1642691085984,0.00278634,3229.4,3229.1,0.00170528]
[1642691086191,0.00278634,3229.4,3228.9,0.00284212]
[1642691086382,0.00278634,3229.4,3228.8,0.00341055]
[1642691086586,2.69728894,3229.4,3228.8,0.00341055]
[1642691086783,1.38638219,3229.1,3228.8,0.00341055]
[1642691086984,1.98638219,3229.1,3228.8,0.00341055]
[1642691087385,1.98638219,3229.1,3228.3,0.00625266]
[1642691087584,0.6,3229.1,3228.3,0.00625266]
[1642691087785,0.00278634,3229.4,3228.8,1.10393479]
[1642691087985,0.00278634,3229.4,3228.8,4.20393479]
[1642691088189,0.00278634,3229.4,3228.9,0.00284212]
[1642691088387,0.00278634,3229.4,3229.0,0.00457803]
[1642691088587,0.00278634,3229.4,3229.0,1.33415276]
[1642691088785,0.00170527,3229.7,3229.1,0.00170528]
[1642691089229,0.01035756,3229.9,3229.1,0.00170528]
[1642691089230,0.00113684,3229.6,3229.1,0.00170528]
[1642691090841,0.00113684,3229.6,3229.1,2.69620788]
[1642691091044,0.00113684,3229.6,3229.2,0.15497]
[1642691091236,0.00113684,3229.6,3229.2,0.97200685]
[1642691091442,2.3416,3231.2,3229.2,0.97200685]
[1642691091443,0.1,3230.9,3229.6,18.27]
[1642691091650,0.17368,3232.2,3229.5,0.01214235]
[1642691091651,0.45869514,3231.5,3230.6,0.01211975]
[1642691091838,0.87114581,3232.3,3230.7,0.02737813]
[1642691091839,1.23728974,3232.0,3230.7,0.02737813]
[1642691092040,0.4702833,3232.3,3231.7,1.14764763]
[1642691092238,0.01477901,3232.2,3231.4,1.33244269]
[1642691092441,0.123974,3232.1,3231.4,1.33244269]
[1642691092803,0.01364217,3232.0,3231.4,1.33244269]
[1642691093191,1.6557935,3232.4,3231.4,1.33244269]
[1642691093192,1.52246537,3231.9,3231.4,2.56962313]
[1642691093395,0.01307374,3231.9,3231.4,2.56962313]
[1642691093595,0.01250532,3231.8,3231.4,2.56962313]
[1642691093795,1.58829882,3232.4,3231.4,1.23718044]
[1642691093997,0.00387206,3232.0,3231.4,1.23718044]
[1642691094195,0.00387206,3232.0,3230.9,2.6945026]
[1642691094196,0.00387206,3232.0,3231.5,0.00170527]
[1642691094596,0.00387206,3232.0,3231.0,0.00454739]
[1642691094796,0.00300617,3232.0,3231.0,0.00454739]
[1642691095196,1.30840709,3231.8,3231.0,0.00454739]
[1642691095396,0.00300617,3232.0,3231.0,0.00454739]
[1642691095798,1.54414711,3232.4,3231.1,5.95]
[1642691096006,1.54414711,3232.4,3231.5,0.01218716]
[1642691096007,0.00354465,3232.3,3231.5,0.01218716]
[1642691096200,1.54414711,3232.4,3231.5,0.01218716]
[1642691096201,1.54414711,3232.4,3231.6,0.60197]
[1642691096398,1.54414711,3232.4,3231.7,3.83069246]
[1642691096632,1.54414711,3232.4,3232.3,5.28987845]
[1642691097532,1.54414711,3232.4,3232.3,6.42585704]
[1642691097731,1.54414711,3232.4,3232.3,9.52585704]
[1642691097933,0.1,3232.6,3232.4,5.95]
[1642691098136,0.1,3232.6,3232.5,8.66097842]
[1642691098334,0.1,3232.6,3232.4,0.6647]
[1642691098538,0.1,3232.6,3232.4,0.2177]
[1642691098732,0.00113684,3232.5,3232.4,0.2177]
[1642691099333,0.00113684,3232.5,3232.3,3.23819997]
[1642691099536,0.00113684,3232.5,3232.3,3.1]
[1642691102593,0.00113684,3232.5,3232.3,3.08943945]
[1642691107637,0.00113684,3232.5,3232.4,2.37479077]
[1642691107883,0.00113684,3232.5,3232.3,3.08943945]
[1642691108688,1.10763881,3232.5,3232.3,3.08943945]
[1642691109688,0.00177208,3233.1,3232.4,8.64938488]
[1642691109993,0.00284212,3233.0,3232.4,10.20914713]
[1642691110388,0.0022737,3232.9,3232.4,10.20914713]
[1642691110789,0.10177208,3233.3,3232.4,7.4973632]
[1642691110790,1.3320658,3232.8,3232.4,7.4973632]
[1642691110991,1.3320658,3232.8,3232.4,5.95]
[1642691111191,0.00113685,3232.7,3232.3,3.08943945]
[1642691111388,0.00290893,3232.7,3232.3,3.08943945]
[1642691111646,0.00113685,3232.7,3232.3,3.08943945]
[1642691111844,0.00290893,3232.7,3232.3,3.08943945]
[1642691112042,0.00113685,3232.7,3232.3,3.08943945]
[1642691112242,0.00290893,3232.7,3232.3,3.08943945]
[1642691112445,0.30113685,3232.7,3232.3,3.08943945]
[1642691112644,0.00290893,3232.7,3232.4,1.0]
[1642691112846,0.10177208,3233.3,3232.6,6.10497]
[1642691113048,0.1,3233.3,3232.7,8.63505084]
[1642691113246,0.1,3233.3,3232.7,5.95]
[1642691113247,0.0046142,3233.2,3232.7,5.95]
[1642691113445,0.00284212,3233.2,3233.0,1.13248645]
[1642691113643,0.00227369,3233.1,3232.8,4.9372]
[1642691114044,0.00170527,3233.0,3232.8,2.68505084]
[1642691114253,0.00170527,3233.0,3232.9,1.60197]
[1642691114254,5.27e-06,3233.0,3232.9,1.60197]
[1642691114447,0.1,3233.3,3232.9,1.60197]
[1642691114646,0.1,3233.3,3232.9,0.447]
[1642691114850,0.00114212,3233.2,3232.8,1.2209]
[1642691115309,0.00114212,3233.2,3232.9,2.68505084]
[1642691115512,0.00114212,3233.2,3232.8,2.1494455]
[1642691115709,1.51e-06,3233.4,3232.9,2.68505084]
[1642691115916,0.51205638,3235.3,3232.9,2.68505084]
[1642691115917,0.01421413,3235.8,3233.8,0.0008]
[1642691116218,15.0892168,3236.6,3236.5,1.52659994]
[1642691116219,5.4655168,3236.6,3236.5,1.52659994]
[1642691116414,1.6257935,3237.2,3236.6,5.95]
[1642691116617,1.6257935,3237.2,3236.7,2.59371731]
[1642691116822,1.6257935,3237.2,3236.8,0.0050514]
[1642691117214,1.6257935,3237.2,3235.5,8.8001]
[1642691117215,1.6257935,3237.2,3235.5,5.90115084]
[1642691117414,1.6257935,3237.2,3235.6,0.447]
[1642691117615,1.33430304,3236.7,3235.8,0.772888]
[1642691117814,1.6257935,3237.2,3235.9,3.13205084]
[1642691118015,0.01932639,3236.6,3235.9,3.13205084]
[1642691118215,1.35517978,3236.0,3235.9,3.13205084]
[1642691118416,1.35517978,3236.0,3235.9,0.447]
[1642691118623,1.35517978,3236.0,3235.6,3.1]
[1642691118624,1.37109563,3236.0,3235.6,3.1]
[1642691119039,0.01534743,3235.9,3235.6,3.1]
[1642691119343,1.65517978,3236.0,3235.6,3.1]
[1642691119344,1.47857146,3235.8,3235.6,3.1]
[1642691119538,2.07857146,3235.8,3235.6,3.1]
[1642691119737,2.07857146,3235.8,3235.6,3.108]
[1642691119738,0.01421058,3235.7,3235.6,3.108]
[1642691120543,0.01421058,3235.7,3234.4,1.33847]
[1642691120544,4.25391058,3235.7,3234.2,1.9934587]
[1642691120749,4.25391058,3235.7,3233.8,0.0008]
[1642691120750,0.0126747,3235.1,3233.8,0.0008]
[1642691120946,0.9397,3235.2,3233.9,0.15497]
[1642691121144,0.01023162,3235.0,3233.9,0.15497]
[1642691121343,0.9397,3235.1,3233.9,0.15497]
[1642691121344,0.95050004,3235.1,3233.9,0.15497]
[1642691121543,0.9397,3234.2,3233.9,0.15497]
[1642691121744,0.3,3235.2,3234.3,1.87939999]
[1642691121745,0.01023162,3235.0,3234.3,1.87939999]
[1642691121948,0.9397,3235.1,3234.3,1.87939999]
[1642691122344,0.01023162,3235.0,3234.3,1.87939999]
[1642691122544,0.01023162,3235.0,3234.4,2.68505084]
[1642691122792,0.0096632,3234.9,3234.5,1.24715804]
[1642691122987,0.0096632,3234.9,3234.6,3.1327633]
[1642691123189,0.9397,3235.1,3234.8,6.10497]
[1642691123388,0.9397,3235.1,3234.9,2.69106115]
[1642691123588,0.01023162,3235.0,3234.9,2.69106115]
[1642691123787,0.01023162,3235.0,3234.6,1.5462976]
[1642691124188,0.0096632,3234.9,3234.6,1.5462976]
[1642691124599,0.00909477,3234.8,3234.5,0.447]
[1642691124793,0.00909477,3234.8,3234.3,3.42582259]
[1642691124998,2.3015562,3235.1,3234.3,1.87939999]
[1642691124999,0.00852635,3234.7,3234.3,1.87939999]
[1642691125393,0.9397,3235.0,3234.3,1.87939999]
[1642691125394,0.00795793,3234.6,3234.3,1.87939999]
[1642691125597,0.9397,3234.4,3234.3,1.87939999]
[1642691125995,0.94652108,3234.4,3234.3,1.87939999]
[1642691126197,1.24652108,3234.4,3234.3,1.87939999]
[1642691126540,0.94652108,3234.4,3234.3,1.87939999]
[1642691126740,0.94652108,3234.4,3234.3,7.22939999]
[1642691127039,0.19852108,3234.4,3234.3,7.98436999]
[1642691127347,0.016,3234.9,3234.4,0.496915]
[1642691127541,0.016,3234.9,3234.5,0.447]
[1642691127740,0.016,3234.9,3234.8,5.25101533]
[1642691127940,0.016,3234.9,3234.8,4.0]
[1642691128139,0.01884212,3234.9,3234.8,4.0]
[1642691128340,0.01884212,3234.9,3234.8,5.45723415]
[1642691128743,0.01884212,3234.9,3234.8,7.40723415]
[1642691128947,0.01884212,3234.9,3234.8,6.63488778]
[1642691129341,0.01884212,3234.9,3234.8,8.93488778]
[1642691129543,0.00177138,3236.0,3234.9,5.95]
[1642691129748,0.00177138,3236.0,3235.0,3.29826868]
[1642691129953,0.00170527,3235.2,3235.1,18.27]
[1642691130146,0.00170527,3235.2,3235.1,0.371]
[1642691130410,2.70943852,3236.9,3235.1,0.371]
[1642691130604,1.52493417,3235.7,3235.3,1.19093423]
[1642691130805,1.52493417,3235.7,3235.0,1.227]
[1642691131007,0.00575034,3235.6,3234.8,2.31206491]
[1642691131203,1.52493417,3235.7,3235.6,0.01150067]
[1642691131403,1.82493417,3235.7,3235.6,0.01150067]
[1642691133605,1.82493417,3235.7,3234.6,2.40355881]
[1642691133906,1.82948155,3235.7,3234.7,0.00113685]
[1642691134532,1.82948155,3235.7,3234.6,0.00170527]
[1642691134742,1.10711807,3235.5,3234.6,0.00170527]
[1642691135144,0.77345,3235.3,3234.5,0.0022737]
[1642691135340,0.00177138,3235.2,3234.5,0.0022737]
[1642691135539,1.12197665,3235.2,3234.5,0.0022737]
[1642691135838,0.77474684,3235.1,3234.5,0.0022737]
[1642691136039,1.24792308,3234.8,3234.5,0.0022737]
[1642691137140,1.54738,3234.7,3234.5,0.0022737]
[1642691137339,7.07051446,3234.8,3234.5,0.0022737]
[1642691137540,7.06874308,3234.8,3234.5,0.0022737]
[1642691137983,7.36874308,3234.8,3234.5,0.0022737]
[1642691138185,1.0,3234.7,3234.5,0.0022737]
[1642691138585,4.2,3234.6,3234.4,0.496915]
[1642691138788,7.7,3234.6,3234.3,1.87939999]
[1642691138988,8.00177138,3234.6,3234.3,1.87939999]
[1642691139188,0.80786619,3234.5,3234.3,1.87939999]
[1642691139587,1.80786619,3234.5,3234.3,1.87939999]
[1642691139789,5.15054913,3234.6,3234.5,0.49213381]
[1642691139990,5.14877775,3234.6,3234.5,0.49213381]
[1642691140190,4.60789529,3234.6,3234.5,0.49213381]
[1642691140590,5.6897,3234.4,3234.3,1.87939999]
[1642691140992,0.3,3234.4,3234.3,1.88053684]
[1642691141191,4.4397,3234.4,3234.3,1.88053684]
[1642691141393,7.4897,3234.4,3234.3,1.83053684]
[1642691141839,4.4397,3234.4,3234.3,1.83053684]
[1642691142238,0.9397,3234.2,3233.3,2.67904724]
[1642691142438,6.40345266,3234.3,3233.0,2.67904724]
[1642691142439,0.9397,3234.0,3233.0,2.67904724]
[1642691142638,0.9397,3234.0,3233.9,0.00227369]
[1642691143044,1.5397,3234.0,3233.9,0.00227369]
[1642691143438,0.9397,3234.0,3233.9,0.00227369]
[1642691144539,2.31344,3234.0,3233.9,0.00227369]
[1642691144740,5.0397,3234.0,3233.9,0.00227369]
[1642691146788,5.0397,3234.0,3233.4,2.28192469]
[1642691146988,0.00177138,3233.9,3233.3,2.85971276]
[1642691147187,0.00177138,3233.9,3233.5,0.00227369]
[1642691147490,4.4397,3234.0,3233.8,1.24082498]
[1642691147691,4.4397,3234.0,3233.9,5.46653576]
[1642691147692,0.9397,3234.0,3233.9,5.46653576]
[1642691147892,0.9397,3234.0,3233.9,3.1]
[1642691148092,0.94147171,3234.5,3234.1,6.62939999]
[1642691148690,0.94147171,3234.5,3234.4,1.12277075]
[1642691148891,0.80789529,3234.6,3234.4,1.12277075]
[1642691149157,0.76130583,3234.6,3234.4,1.12277075]
[1642691149944,0.76130583,3234.6,3234.5,1.50677272]
[1642691150749,0.76130583,3234.6,3234.4,1.12277075]
[1642691151145,1.06130583,3234.6,3234.5,2.30229423]
[1642691151353,1.35741095,3235.2,3234.5,2.30229423]
[1642691151354,0.00177171,3235.2,3234.6,5.95]
[1642691151550,0.03,3235.6,3234.9,7.73129]
[1642691151757,5.9671,3236.9,3236.5,0.80819829]
[1642691151951,1.19466453,3237.5,3236.6,0.00825013]
[1642691152150,0.01226453,3237.5,3236.6,0.00825013]
[1642691152350,0.01226453,3237.5,3236.5,0.80819829]
[1642691152351,1.30409218,3236.9,3236.5,0.80819829]
[1642691152794,1.30409218,3236.9,3236.6,0.7730798]
[1642691152795,0.0096632,3236.8,3236.6,0.7730798]
[1642691153194,0.48859626,3237.0,3236.6,0.7730798]
[1642691153401,1.20245599,3236.7,3236.6,0.7730798]
[1642691153597,1.20245599,3236.7,3236.5,0.80819829]
[1642691154395,0.00113684,3236.9,3236.5,1.58123369]
[1642691154799,0.48859626,3237.0,3236.6,0.77304]
[1642691154997,0.48859626,3237.0,3236.6,0.77474527]
[1642691155197,0.48859626,3237.0,3236.7,0.00113684]
[1642691155399,1.09714175,3236.9,3236.7,0.00113684]
[1642691155902,0.78913,3236.8,3236.7,0.00113684]
[1642691156098,0.016,3236.8,3236.7,0.00113684]
[1642691156301,0.48859626,3237.0,3236.8,2.3186]
[1642691156302,0.021978,3237.0,3236.8,2.3186]
[1642691156537,5.0,3237.4,3236.9,1.5456356]
[1642691156538,0.4152515,3237.4,3236.9,1.5456356]
[1642691156738,0.87579548,3237.4,3236.9,4.17192884]
[1642691156941,0.87579548,3237.4,3236.9,1.5456356]
[1642691157138,0.87579548,3237.4,3236.8,2.3186]
[1642691157139,1.47521728,3237.8,3237.2,1.5456322]
[1642691157338,2.006407,3238.0,3237.3,2.62629324]
[1642691157545,0.46888902,3238.7,3237.5,0.7726341]
[1642691157738,0.00227369,3237.7,3237.5,0.7726341]
[1642691157940,0.00227369,3237.7,3237.6,1.54538]
[1642691158139,0.46888902,3238.7,3237.8,1.5453141]
[1642691158340,1.19287187,3238.6,3237.8,1.5453141]
[1642691158546,1.20026137,3238.6,3237.8,2.64557705]
[1642691159138,1.20026137,3238.6,3238.0,0.77266]
[1642691159139,1.97294137,3238.6,3238.0,0.77266]
[1642691159338,1.92294137,3238.6,3238.0,2.13349317]
[1642691159537,1.92294137,3238.6,3238.0,2.90615317]
[1642691159742,1.0,3239.0,3238.1,5.22045318]
[1642691159945,1.0,3239.0,3238.2,1.55881481]
[1642691160140,0.00113685,3238.8,3238.3,2.64410461]
[1642691160384,0.47437163,3239.4,3238.4,0.67238]
[1642691160584,1.35286037,3239.0,3238.4,0.67465369]
[1642691160785,0.00284212,3239.3,3238.7,0.77241]
[1642691160986,0.00284212,3239.3,3238.8,1.5449102]
[1642691161195,0.03,3239.6,3238.9,1.21331348]
[1642691161389,1.47359643,3240.6,3239.5,1.12142064]
[1642691161598,1.47359643,3240.6,3239.6,2.62629324]
[1642691161790,1.64781148,3240.0,3239.6,2.62629324]
[1642691161987,0.09863811,3240.9,3239.7,3.2]
[1642691162193,0.09863811,3240.9,3239.4,4.6]
[1642691162194,0.77219,3240.7,3239.4,4.6]
[1642691162389,0.00738951,3240.5,3239.5,2.62629324]
[1642691162588,0.00738951,3240.5,3239.6,0.77224]
[1642691162787,0.56914736,3240.9,3239.6,0.77224]
[1642691162788,0.00682109,3240.4,3239.6,0.77224]
[1642691163187,0.00625266,3240.3,3239.8,1.54432]
[1642691163586,0.00568424,3240.2,3239.8,1.54432]
[1642691164033,0.52799522,3240.9,3239.8,4.19432]
[1642691164239,16.8764306,3243.6,3239.8,4.19432]
[1642691164240,5.7145435,3242.1,3240.8,0.0129191]
[1642691164436,2.6257935,3242.1,3241.0,1.5437511]
[1642691164635,2.6257935,3242.1,3240.3,2.31561]
[1642691164636,0.00176986,3242.0,3240.0,4.75]
[1642691164838,4.98168525,3242.0,3240.1,2.62629324]
[1642691165037,4.98168525,3242.0,3239.9,0.00113684]
[1642691165038,1.38706333,3241.1,3239.9,0.00113684]
[1642691165239,0.77217,3240.8,3239.9,0.00113684]
[1642691165437,0.017,3240.7,3239.7,2.62856694]
[1642691165639,0.02041054,3240.7,3239.6,1.544672]
[1642691165845,0.00284211,3240.6,3239.1,0.0121016]
[1642691166045,1.357311,3239.8,3239.2,0.77234]
[1642691166242,6.64855321,3241.0,3239.2,0.00284212]
[1642691166243,0.00177011,3239.7,3239.2,0.00284212]
[1642691166450,1.52594033,3239.6,3239.2,0.00284212]
[1642691166640,1.52594033,3239.6,3239.2,0.00795793]
[1642691166839,1.52594033,3239.6,3239.2,0.78033793]
[1642691167241,1.52594033,3239.6,3239.3,0.0073895]
[1642691167903,1.52594033,3239.6,3239.2,0.5326695]
[1642691168104,0.00113684,3239.5,3239.3,0.5520451]
[1642691168319,0.00113684,3239.5,3239.3,0.5446451]
[1642691169608,0.00113684,3239.5,3239.2,0.5326695]
[1642691169808,0.00290695,3239.5,3239.2,0.5326695]
[1642691170009,0.00113684,3239.5,3239.2,1.3050146]
[1642691170210,0.00113684,3239.5,3239.2,2.0773446]
[1642691170410,0.00290695,3239.5,3239.2,2.0773446]
[1642691170609,0.00290695,3239.5,3239.3,3.095032]
[1642691170610,0.00113684,3239.5,3239.3,3.095032]
[1642691170812,0.00290695,3239.5,3239.3,3.095032]
[1642691171013,1.49109254,3239.5,3239.3,3.095032]
[1642691171211,1.49109254,3239.5,3239.3,3.01908419]
[1642691171848,1.49027015,3239.5,3239.3,3.01908419]
[1642691172148,0.74948,3239.4,3239.3,3.01908419]
[1642691172345,0.61721,3239.4,3239.3,3.01908419]
[1642691172545,0.61721,3239.4,3239.3,3.01990658]
[1642691173048,0.58415,3239.4,3239.3,2.94838658]
[1642691173248,5.55,3239.3,3238.7,0.77247]
[1642691173550,1.49067,3239.1,3238.3,1.49503]
[1642691173848,1.49067,3239.1,3238.4,0.00511581]
[1642691173849,3.04205662,3239.0,3238.4,0.00511581]
[1642691174055,1.55197763,3238.9,3238.4,0.00511581]
[1642691174254,0.77266,3238.7,3238.4,0.00511581]
[1642691174446,2.79294199,3238.6,3238.4,0.00511581]
[1642691174648,2.85812898,3238.6,3238.4,0.00511581]
[1642691174846,3.1,3238.6,3238.3,1.45014581]
[1642691175048,2.82080857,3238.6,3238.3,1.45014581]
[1642691175290,2.86763297,3238.6,3238.3,1.45014581]
[1642691175690,0.00177011,3238.6,3238.3,1.45014581]
[1642691175891,1.30173649,3238.4,3238.3,1.45014581]
[1642691176092,0.77443011,3238.7,3238.3,2.22276581]
[1642691176292,0.00113684,3238.6,3238.3,1.22276581]
[1642691176604,0.016,3239.6,3238.3,1.37773581]
[1642691176801,1.08402763,3240.5,3239.2,0.01205989]
[1642691176998,0.00354077,3239.6,3239.2,0.01205989]
[1642691177196,1.26475146,3239.5,3239.2,0.01205989]
[1642691177399,0.00682109,3239.8,3239.2,1.55669989]
[1642691177700,6.518,3240.8,3239.2,3.08926]
[1642691177701,0.00625266,3239.7,3239.2,3.08926]
[1642691177897,0.00625266,3239.7,3238.6,6.10122546]
[1642691178094,4.92225266,3240.0,3238.8,0.77247]
[1642691178295,0.01954005,3239.9,3238.8,0.77247]
[1642691178495,0.01954005,3239.9,3239.0,1.54486]
[1642691178496,1.50630912,3239.8,3239.0,1.54486]
[1642691178699,0.7725,3239.6,3239.0,1.54486]
[1642691178899,0.00354005,3239.5,3239.1,0.00341054]
[1642691179341,1.0,3239.4,3239.1,0.00341054]
[1642691179541,1.23754583,3239.3,3239.1,0.00341054]
[1642691179736,3.0726,3239.2,3239.1,0.00341054]
[1642691179936,3.0726,3239.2,3239.1,3.1]
[1642691180139,0.7726,3239.2,3239.1,3.1]
[1642691180337,0.7726,3239.2,3239.1,3.10341054]
[1642691182348,2.78628588,3239.3,3239.1,3.10341054]
[1642691182349,1.24108588,3239.3,3239.1,3.10341054]
[1642691182781,1.54108588,3239.3,3239.2,0.00284212]
[1642691182987,1.23754583,3239.3,3239.2,0.00284212]
[1642691184188,2.78269583,3239.3,3239.2,0.00284212]
[1642691184890,2.7,3239.2,3239.1,3.1]
[1642691185090,2.78623588,3239.3,3239.1,3.1]
[1642691185390,5.0,3239.2,3239.1,3.1]
[1642691186942,2.65,3239.1,3238.1,3.04433105]
[1642691187141,0.77265,3238.9,3238.2,0.7726]
[1642691187348,0.00354005,3238.8,3238.2,0.77828423]
[1642691188042,1.22709571,3238.7,3238.2,0.77828423]
[1642691188246,0.00354005,3238.6,3238.2,0.77828423]
[1642691189342,0.77616005,3238.6,3238.2,0.77828423]
[1642691189747,0.01279706,3240.3,3238.2,0.77828423]
[1642691189748,5.6815,3241.2,3238.5,0.01272137]
[1642691189950,5.6665,3241.2,3240.0,0.01295128]
[1642691190143,5.6665,3241.2,3240.1,0.01053139]
[1642691190389,0.03,3241.7,3240.9,2.36278259]
[1642691190390,1.0,3241.4,3240.9,2.36278259]
[1642691190694,0.00909478,3241.0,3240.9,2.36278259]
[1642691190891,0.00909478,3241.0,3240.9,3.90647259]
[1642691191092,0.00909478,3241.0,3240.9,2.31554]
[1642691191696,0.00909478,3241.0,3240.9,7.22833065]
[1642691191894,0.00909478,3241.0,3240.9,6.30558195]
[1642691192092,0.00909478,3241.0,3240.9,3.72833065]
[1642691192496,0.00909478,3241.0,3240.9,1.49369]
[1642691192694,0.00909478,3241.0,3240.9,1.491839]
[1642691193899,0.03,3241.7,3240.9,1.491839]
[1642691193900,0.03,3241.7,3241.0,5.95]
[1642691194167,0.03,3241.7,3241.1,5.6639604]
[1642691194362,0.03,3241.7,3241.1,3.0867091]
[1642691194363,0.00227369,3241.4,3241.1,3.0867091]
[1642691194562,1.12224896,3241.4,3241.1,3.0867091]
[1642691194762,0.00170527,3241.3,3241.1,3.0867091]
[1642691194962,0.00170527,3241.3,3241.1,2.31506]
[1642691195167,0.00113684,3241.2,3241.1,2.31506]
[1642691196364,0.00113684,3241.2,3241.1,0.77168]
[1642691197464,0.00113684,3241.2,3240.9,1.491839]
[1642691197887,0.24544843,3241.8,3240.9,1.491839]
[1642691198087,1.15655948,3241.4,3240.9,1.491839]
[1642691198287,1.15655948,3241.4,3241.0,0.00113684]
[1642691198890,1.15655948,3241.4,3241.0,4.55905789]
[1642691199090,1.15655948,3241.4,3241.0,4.57254679]
[1642691199392,1.15655948,3241.4,3241.0,2.31652854]
[1642691199590,0.0022737,3241.6,3241.0,4.92045484]
[1642691199993,0.00170527,3241.5,3241.0,4.92045484]
[1642691200393,0.00113685,3241.4,3241.0,4.92045484]
[1642691200593,0.00113685,3241.4,3241.0,6.42419568]
[1642691200793,0.00397897,3241.9,3241.0,6.42419568]
[1642691200992,0.00397897,3241.9,3241.0,2.31652854]
[1642691201195,0.00341054,3241.8,3241.1,2.25626947]
[1642691201637,0.00284212,3241.7,3241.1,2.25626947]
[1642691201841,0.00284212,3241.7,3241.1,5.34295007]
[1642691202042,1.27730022,3241.6,3241.3,0.77159]
[1642691202440,1.27730022,3241.6,3241.0,3.10113684]
[1642691202441,0.00170527,3241.5,3241.0,3.10113684]
[1642691202640,0.00347484,3241.5,3241.0,3.10113684]
[1642691202847,0.00113685,3241.4,3241.0,3.10113684]
[1642691203440,1.23020664,3241.6,3241.0,3.10113684]
[1642691203640,0.0017696,3241.5,3241.1,0.008]
[1642691203841,0.0017696,3241.5,3241.1,0.00970527]
[1642691204043,0.0017696,3241.5,3241.2,0.00113685]
[1642691204245,1.54398,3241.5,3241.2,0.00113685]
[1642691204640,2.54398,3241.5,3241.2,0.00113685]
[1642691204843,1.54398,3241.5,3241.2,0.00113685]
[1642691205041,1.72166187,3241.4,3241.2,0.00113685]
[1642691205517,2.72166187,3241.4,3241.2,0.00113685]
[1642691206311,3.7207611,3241.4,3241.2,0.00113685]
[1642691206512,1.42166187,3241.4,3241.2,0.00113685]
[1642691206712,0.77197,3241.3,3241.2,0.00113685]
[1642691207112,1.23197624,3241.6,3241.2,0.00113685]
[1642691207311,1.23020664,3241.6,3241.2,0.00113685]
[1642691207915,2.00208664,3241.6,3241.2,0.00113685]
[1642691208118,1.23020664,3241.6,3241.2,0.00113685]
[1642691208716,1.23020664,3241.6,3241.2,0.00913685]
[1642691209343,0.016,3241.4,3241.2,0.00913685]
[1642691209739,0.77195,3241.3,3241.2,0.00913685]
[1642691209940,0.016,3241.4,3241.2,0.00913685]
[1642691210159,0.016,3241.4,3241.2,0.78095685]
[1642691210540,0.016,3241.4,3241.2,0.00913685]
[1642691212546,0.016,3241.4,3241.2,0.78095685]
[1642691212787,0.016,3241.4,3241.3,2.6039263]
[1642691212990,0.016,3241.4,3241.3,5.0218126]
[1642691213393,0.016,3241.4,3241.3,3.9]
[1642691213590,0.016,3241.4,3241.2,0.78095685]
[1642691213794,0.016,3241.4,3241.2,0.00913685]
[1642691214393,0.016,3241.4,3241.2,1.11030515]
[1642691214693,1.38851103,3241.3,3241.2,2.40913685]
[1642691215096,0.016,3241.4,3241.2,5.01306315]
[1642691215295,0.016,3241.4,3241.3,3.4]
[1642691215695,0.016,3241.4,3241.3,5.95]
[1642691216095,0.0017696,3242.0,3241.6,1.17879142]
[1642691216299,0.0017696,3242.0,3241.6,1.95051142]
[1642691216542,0.00284212,3241.9,3241.6,0.77172]
[1642691216939,0.0017696,3242.0,3241.6,0.77172]
[1642691216940,0.00227369,3241.8,3241.6,0.77172]
[1642691217342,0.00170527,3241.7,3241.6,0.77172]
[1642691217947,0.00170527,3241.7,3241.6,9.3256463]
[1642691218343,0.0017696,3242.0,3241.7,5.9517]
[1642691218551,3.12305434,3243.1,3241.6,9.3256463]
[1642691218552,0.45881862,3243.1,3242.4,4.65]
[1642691218941,0.45881862,3243.1,3242.1,2.6039263]
[1642691219141,0.45881862,3243.1,3241.9,3.7241]
[1642691219343,0.45881862,3243.1,3241.6,0.008]
[1642691219344,1.54747897,3242.4,3241.6,0.008]
[1642691219742,0.00341054,3242.3,3241.7,0.77167]
[1642691220293,0.00284212,3242.2,3241.7,0.77167]
[1642691220699,0.00227369,3242.1,3241.7,0.77167]
[1642691221200,0.00170527,3242.0,3241.8,1.2253577]
[1642691221599,0.00113685,3241.9,3241.8,5.0753577]
[1642691222298,0.00113685,3241.9,3241.7,0.77167]
[1642691222499,0.00113685,3241.9,3241.8,4.2]
[1642691222698,0.72987685,3242.5,3241.9,3.4]
[1642691222900,0.72987685,3242.5,3242.0,0.77157]
[1642691223098,0.00284212,3242.4,3242.0,0.77157]
[1642691223300,0.00284212,3242.4,3242.3,1.18662509]
[1642691223499,0.72987685,3242.5,3242.3,1.18662509]
[1642691223703,0.77157,3242.8,3242.1,1.42884963]
[1642691224137,0.00511581,3242.8,3242.1,4.03589708]
[1642691224340,0.00511581,3242.8,3242.1,1.44170642]
[1642691224742,0.00511581,3242.8,3242.1,0.01285679]
[1642691224942,0.00511581,3242.8,3241.9,2.59419066]
[1642691225143,0.00511581,3242.8,3241.9,3.9437419]
[1642691225744,0.00511581,3242.8,3241.9,1.34955124]
[1642691225943,0.00511581,3242.8,3242.1,0.77157]
[1642691226543,1.11927417,3242.8,3242.1,0.77157]
[1642691226744,0.77158,3242.7,3241.7,1.55108]
[1642691226947,0.77158,3242.7,3242.2,0.00341054]
[1642691227145,0.79253915,3242.7,3241.8,0.00568424]
[1642691227544,0.77158,3242.7,3241.8,0.00568424]
[1642691227794,0.77166,3242.3,3241.8,0.00568424]
[1642691227988,1.07166,3242.3,3241.8,0.00568424]
[1642691228796,0.77166,3242.3,3241.8,0.00568424]
[1642691229192,0.011,3242.2,3241.8,0.00568424]
[1642691229393,0.011,3242.2,3241.8,0.01368424]
[1642691229594,1.12312665,3242.1,3241.8,0.01368424]
[1642691229894,1.12312665,3242.1,3241.9,0.00511581]
[1642691230294,1.92910988,3242.1,3241.9,0.00511581]
[1642691230496,1.92910988,3242.1,3241.8,0.008]
[1642691230497,3.1,3242.0,3241.8,0.008]
[1642691230695,0.77193,3241.9,3241.8,0.008]
[1642691231651,0.80598323,3242.1,3241.8,3.108]
[1642691232644,1.173764,3242.0,3241.8,3.108]
[1642691233244,0.80775266,3242.1,3241.8,3.108]
[1642691234048,1.0,3243.0,3242.1,5.95]
[1642691234049,0.00880881,3242.9,3242.1,5.95]
[1642691234253,1.0,3243.0,3242.8,0.01295756]
[1642691234453,1.0,3243.0,3241.8,3.108]
[1642691234751,0.77161,3242.5,3241.8,3.108]
[1642691235149,1.31533118,3242.4,3241.8,3.108]
[1642691235603,0.00227369,3242.3,3241.8,3.108]
[1642691235805,1.31059349,3242.2,3241.8,3.108]